[Event "*** Titled Tuesday Blitz"]
[Site "Chess.com"]
[Date "2020.02.04"]
[Round "7"]
[White "NemtsevIgor"]
[Black "Funkmaus"]
[Result "1-0"]
[WhiteElo "2396"]
[BlackElo "2173"]
[TimeControl "180+2"]
[EndTime "10:36:03 PST"]
[Termination "NemtsevIgor won on time"]

1. d4 {[%clk 0:03:01.9]} 1... d5 {[%clk 0:03:00.9]} 2. Bf4 {[%clk 0:03:00.8]}
2... c5 {[%clk 0:03:00.9]} 3. e3 {[%clk 0:02:59.6]} 3... cxd4 {[%clk 0:03:01.2]}
4. exd4 {[%clk 0:03:00.6]} 4... Nc6 {[%clk 0:03:00.4]} 5. c3 {[%clk 0:03:01.1]}
5... Nf6 {[%clk 0:02:54.5]} 6. Nd2 {[%clk 0:02:58.1]} 6... Bf5 {[%clk
0:02:49.3]} 7. Ngf3 {[%clk 0:02:57.6]} 7... e6 {[%clk 0:02:50.2]} 8. Qb3 {[%clk
0:02:57.6]} 8... Qc8 {[%clk 0:02:42.9]} 9. Nh4 {[%clk 0:02:50.1]} 9... Bg6
{[%clk 0:02:42.2]} 10. Nxg6 {[%clk 0:02:51.3]} 10... hxg6 {[%clk 0:02:44.1]} 11.
h3 {[%clk 0:02:52]} 11... Be7 {[%clk 0:02:44.4]} 12. Be2 {[%clk 0:02:52.3]}
12... O-O {[%clk 0:02:41.7]} 13. O-O {[%clk 0:02:48.5]} 13... Qd7 {[%clk
0:02:41.2]} 14. Nf3 {[%clk 0:02:44.6]} 14... Ne4 {[%clk 0:02:38.5]} 15. Rfe1
{[%clk 0:02:33]} 15... Bd6 {[%clk 0:02:28.6]} 16. Bxd6 {[%clk 0:02:24.2]} 16...
Nxd6 {[%clk 0:02:14.5]} 17. Bd3 {[%clk 0:02:13.7]} 17... a6 {[%clk 0:02:06.5]}
18. h4 {[%clk 0:02:06.2]} 18... b5 {[%clk 0:01:59.6]} 19. a3 {[%clk 0:01:56.6]}
19... Na5 {[%clk 0:01:54]} 20. Qc2 {[%clk 0:01:52.8]} 20... Nac4 {[%clk
0:01:48.1]} 21. b3 {[%clk 0:01:42.4]} 21... Nb6 {[%clk 0:01:47.1]} 22. Ne5
{[%clk 0:01:42.6]} 22... Qd8 {[%clk 0:01:40.6]} 23. g3 {[%clk 0:01:25.9]} 23...
Rc8 {[%clk 0:01:39.2]} 24. Rac1 {[%clk 0:01:18.8]} 24... Nf5 {[%clk 0:01:38.2]}
25. Qe2 {[%clk 0:01:13.3]} 25... Qe7 {[%clk 0:01:32]} 26. Qg4 {[%clk 0:00:58.3]}
26... Qxa3 {[%clk 0:01:05.8]} 27. h5 {[%clk 0:00:59]} 27... gxh5 {[%clk
0:00:37.4]} 28. Qxh5 {[%clk 0:00:59.2]} 28... g6 {[%clk 0:00:28]} 29. Qg4 {[%clk
0:00:48.8]} 29... Nh6 {[%clk 0:00:24.1]} 30. Qh3 {[%clk 0:00:30]} 30... Kg7
{[%clk 0:00:21.9]} 31. Kg2 {[%clk 0:00:23.9]} 31... Qe7 {[%clk 0:00:21.1]} 32.
Rh1 {[%clk 0:00:24.8]} 32... Rh8 {[%clk 0:00:22.5]} 33. Rce1 {[%clk 0:00:22.5]}
33... Rxc3 {[%clk 0:00:23]} 34. Nxg6 {[%clk 0:00:18.6]} 34... fxg6 {[%clk
0:00:21.6]} 35. Rxe6 {[%clk 0:00:19.5]} 35... Qg5 {[%clk 0:00:18]} 36. Rxg6+
{[%clk 0:00:19.5]} 36... Qxg6 {[%clk 0:00:18.3]} 37. Bxg6 {[%clk 0:00:21.4]}
37... Kxg6 {[%clk 0:00:20.2]} 38. Qe6+ {[%clk 0:00:22.2]} 38... Kg7 {[%clk
0:00:17.1]} 39. Qxb6 {[%clk 0:00:23.2]} 39... Rcc8 {[%clk 0:00:14.1]} 40. Qxa6
{[%clk 0:00:23.2]} 40... Rcf8 {[%clk 0:00:14.1]} 41. Qxb5 {[%clk 0:00:23.3]}
41... Ng4 {[%clk 0:00:12.1]} 42. Rxh8 {[%clk 0:00:23.1]} 42... Kxh8 {[%clk
0:00:13.2]} 43. f4 {[%clk 0:00:21.3]} 1-0

[Event "*** Titled Tuesday Blitz"]
[Site "Chess.com"]
[Date "2020.02.04"]
[Round "7"]
[White "MITerryble"]
[Black "LastGladiator1"]
[Result "1-0"]
[WhiteElo "2957"]
[BlackElo "2845"]
[TimeControl "180+2"]
[EndTime "10:36:04 PST"]
[Termination "MITerryble won by resignation"]

1. d4 {[%clk 0:03:01.9]} 1... Nf6 {[%clk 0:02:57.8]} 2. Nf3 {[%clk 0:03:03.2]}
2... e6 {[%clk 0:02:58.8]} 3. c4 {[%clk 0:03:04.3]} 3... b6 {[%clk 0:02:55.6]}
4. g3 {[%clk 0:03:05.1]} 4... Bb7 {[%clk 0:02:56.9]} 5. Bg2 {[%clk 0:03:06]}
5... d6 {[%clk 0:02:58.1]} 6. O-O {[%clk 0:03:06.8]} 6... Nbd7 {[%clk
0:02:59.5]} 7. Nc3 {[%clk 0:03:08.3]} 7... g6 {[%clk 0:03:01]} 8. Qc2 {[%clk
0:03:08.8]} 8... Bg7 {[%clk 0:03:01.7]} 9. e4 {[%clk 0:03:10.3]} 9... O-O {[%clk
0:02:55.1]} 10. Re1 {[%clk 0:03:11.7]} 10... e5 {[%clk 0:02:55.8]} 11. dxe5
{[%clk 0:03:04]} 11... dxe5 {[%clk 0:02:57.7]} 12. Be3 {[%clk 0:03:02.3]} 12...
c6 {[%clk 0:02:56.3]} 13. Rad1 {[%clk 0:03:02.6]} 13... Qe7 {[%clk 0:02:57.1]}
14. Bh3 {[%clk 0:02:55.4]} 14... Rfd8 {[%clk 0:02:44.7]} 15. b3 {[%clk
0:02:56.1]} 15... h6 {[%clk 0:02:37.6]} 16. Rd2 {[%clk 0:02:56.2]} 16... Nc5
{[%clk 0:02:32.9]} 17. Red1 {[%clk 0:02:56.9]} 17... Rxd2 {[%clk 0:02:18.8]} 18.
Rxd2 {[%clk 0:02:57.8]} 18... Nfd7 {[%clk 0:01:58.2]} 19. Qd1 {[%clk 0:02:56]}
19... Nf8 {[%clk 0:01:58.4]} 20. b4 {[%clk 0:02:44]} 20... Nce6 {[%clk 0:01:56]}
21. a3 {[%clk 0:02:45.4]} 21... a5 {[%clk 0:01:44.4]} 22. Qb1 {[%clk 0:02:33.8]}
22... axb4 {[%clk 0:01:40.4]} 23. axb4 {[%clk 0:02:35.7]} 23... c5 {[%clk
0:01:35]} 24. bxc5 {[%clk 0:02:29.2]} 24... bxc5 {[%clk 0:01:36.8]} 25. Nd5
{[%clk 0:02:11.8]} 25... Bxd5 {[%clk 0:01:32.6]} 26. Rxd5 {[%clk 0:01:45]} 26...
Nd4 {[%clk 0:01:30.7]} 27. Kg2 {[%clk 0:01:36.9]} 27... Nfe6 {[%clk 0:01:09.7]}
28. Nxe5 {[%clk 0:01:18.4]} 28... Nc7 {[%clk 0:00:34.5]} 29. Qb7 {[%clk
0:01:18.5]} 29... Ra2 {[%clk 0:00:20.5]} 30. Rd7 {[%clk 0:00:14]} 30... Qxe5
{[%clk 0:00:14.8]} 31. Rxc7 {[%clk 0:00:15]} 31... Nc2 {[%clk 0:00:08.1]} 32.
Rc8+ {[%clk 0:00:13.7]} 32... Kh7 {[%clk 0:00:08.1]} 33. Qxf7 {[%clk 0:00:12.6]}
33... Nxe3+ {[%clk 0:00:09.4]} 34. Kf3 {[%clk 0:00:14]} 34... h5 {[%clk
0:00:06.6]} 35. Rc6 {[%clk 0:00:12.1]} 35... Qg5 {[%clk 0:00:04.4]} 36. fxe3
{[%clk 0:00:11.9]} 36... Rxh2 {[%clk 0:00:05.6]} 37. Rxg6 {[%clk 0:00:07.1]}
37... Qe5 {[%clk 0:00:03.4]} 38. Bf5 {[%clk 0:00:05.9]} 38... Rf2+ {[%clk
0:00:04.9]} 39. Kxf2 {[%clk 0:00:07]} 39... Qb2+ {[%clk 0:00:06.7]} 40. Kf3
{[%clk 0:00:08.4]} 1-0

[Event "*** Titled Tuesday Blitz"]
[Site "Chess.com"]
[Date "2020.02.04"]
[Round "7"]
[White "GukeshDommaraju"]
[Black "ChessLover0108"]
[Result "1-0"]
[WhiteElo "2666"]
[BlackElo "2733"]
[TimeControl "180+2"]
[EndTime "10:36:09 PST"]
[Termination "GukeshDommaraju won on time"]

1. Nf3 {[%clk 0:03:01.9]} 1... Nf6 {[%clk 0:02:56.2]} 2. g3 {[%clk 0:03:02]}
2... g6 {[%clk 0:02:57.2]} 3. Bg2 {[%clk 0:03:02.8]} 3... Bg7 {[%clk 0:02:58.9]}
4. O-O {[%clk 0:03:03.7]} 4... O-O {[%clk 0:03:00.5]} 5. c4 {[%clk 0:03:04.7]}
5... c6 {[%clk 0:02:58.7]} 6. b3 {[%clk 0:03:04.2]} 6... d6 {[%clk 0:02:59.6]}
7. d4 {[%clk 0:02:58.1]} 7... e5 {[%clk 0:03:00.6]} 8. dxe5 {[%clk 0:02:56.2]}
8... dxe5 {[%clk 0:03:00.4]} 9. Ba3 {[%clk 0:02:55.2]} 9... e4 {[%clk
0:02:45.5]} 10. Bxf8 {[%clk 0:02:43.7]} 10... Qxf8 {[%clk 0:02:47.4]} 11. Nd4
{[%clk 0:02:32.3]} 11... e3 {[%clk 0:02:46.5]} 12. fxe3 {[%clk 0:02:28.3]} 12...
Ng4 {[%clk 0:02:35]} 13. Qd2 {[%clk 0:02:01.4]} 13... Qe7 {[%clk 0:02:31]} 14.
Nc3 {[%clk 0:01:32.8]} 14... Nxe3 {[%clk 0:01:43.6]} 15. Rf4 {[%clk 0:01:19.3]}
15... f5 {[%clk 0:01:11.9]} 16. Be4 {[%clk 0:00:59.6]} 16... Ng4 {[%clk
0:00:27.1]} 17. Bf3 {[%clk 0:00:52.7]} 17... Ne5 {[%clk 0:00:11.5]} 18. Re1
{[%clk 0:00:29.3]} 18... Na6 {[%clk 0:00:10.9]} 19. e4 {[%clk 0:00:25.7]} 19...
Qc5 {[%clk 0:00:10.1]} 20. Kg2 {[%clk 0:00:16.4]} 20... Nxf3 {[%clk 0:00:10.5]}
21. Nxf3 {[%clk 0:00:16.3]} 21... Be6 {[%clk 0:00:09.1]} 22. exf5 {[%clk
0:00:13.2]} 22... Bxf5 {[%clk 0:00:11]} 23. Ne4 {[%clk 0:00:13.1]} 23... Qb6
{[%clk 0:00:05.7]} 24. Nd6 {[%clk 0:00:10.4]} 24... Rd8 {[%clk 0:00:05.3]} 25.
Re8+ {[%clk 0:00:07.3]} 25... Rxe8 {[%clk 0:00:06.4]} 26. Nxe8 {[%clk
0:00:09.2]} 26... Bh6 {[%clk 0:00:07.3]} 27. Nf6+ {[%clk 0:00:10.1]} 27... Kg7
{[%clk 0:00:04.8]} 28. Ne5 {[%clk 0:00:07.5]} 28... Bxf4 {[%clk 0:00:04]} 29.
Qxf4 {[%clk 0:00:08.7]} 29... Qa5 {[%clk 0:00:03.5]} 30. Nh5+ {[%clk 0:00:05.8]}
30... gxh5 {[%clk 0:00:04.8]} 31. Qxf5 {[%clk 0:00:06]} 31... Qd2+ {[%clk
0:00:06.4]} 32. Kh3 {[%clk 0:00:07.1]} 32... Qd6 {[%clk 0:00:06.1]} 33. Qf7+
{[%clk 0:00:08.2]} 33... Kh8 {[%clk 0:00:07.5]} 34. Qe8+ {[%clk 0:00:05.3]}
34... Kg7 {[%clk 0:00:08.9]} 35. Qxh5 {[%clk 0:00:07.2]} 35... Nb4 {[%clk
0:00:07.7]} 36. Qf7+ {[%clk 0:00:07.7]} 36... Kh8 {[%clk 0:00:08.9]} 37. Ng4
{[%clk 0:00:08.7]} 1-0

[Event "*** Titled Tuesday Blitz"]
[Site "Chess.com"]
[Date "2020.02.04"]
[Round "7"]
[White "FedaMaster"]
[Black "Korchmar_Vasiliy"]
[Result "1-0"]
[WhiteElo "2610"]
[BlackElo "2800"]
[TimeControl "180+2"]
[EndTime "10:36:14 PST"]
[Termination "FedaMaster won by resignation"]

1. e4 {[%clk 0:03:01.9]} 1... g6 {[%clk 0:02:58.9]} 2. d4 {[%clk 0:03:02.3]}
2... Bg7 {[%clk 0:03:00.4]} 3. Nf3 {[%clk 0:03:02.7]} 3... d6 {[%clk 0:03:01.8]}
4. Bd3 {[%clk 0:03:03.3]} 4... e5 {[%clk 0:02:54]} 5. c3 {[%clk 0:03:01.3]} 5...
Nc6 {[%clk 0:02:54]} 6. dxe5 {[%clk 0:02:51]} 6... dxe5 {[%clk 0:02:54.8]} 7.
O-O {[%clk 0:02:45.1]} 7... h6 {[%clk 0:02:53]} 8. b4 {[%clk 0:02:18.3]} 8...
Be6 {[%clk 0:02:48.5]} 9. a4 {[%clk 0:02:15.4]} 9... g5 {[%clk 0:02:36.3]} 10.
Qe2 {[%clk 0:01:36.4]} 10... g4 {[%clk 0:02:37]} 11. Nfd2 {[%clk 0:01:37]} 11...
h5 {[%clk 0:02:37.5]} 12. Rd1 {[%clk 0:01:36]} 12... h4 {[%clk 0:02:37.5]} 13.
Nf1 {[%clk 0:01:36.8]} 13... Qe7 {[%clk 0:02:38.3]} 14. a5 {[%clk 0:01:23.3]}
14... a6 {[%clk 0:02:27.9]} 15. b5 {[%clk 0:01:17.6]} 15... axb5 {[%clk
0:02:29.2]} 16. Bxb5 {[%clk 0:01:16.6]} 16... Bd7 {[%clk 0:02:22.3]} 17. Nbd2
{[%clk 0:01:02.8]} 17... Nf6 {[%clk 0:02:19.3]} 18. Ba3 {[%clk 0:01:02.6]} 18...
Qd8 {[%clk 0:02:14.9]} 19. Nc4 {[%clk 0:01:03.8]} 19... Qc8 {[%clk 0:02:11.5]}
20. Nfe3 {[%clk 0:00:56.4]} 20... g3 {[%clk 0:02:08.9]} 21. Nd5 {[%clk
0:00:50.7]} 21... gxf2+ {[%clk 0:01:57.4]} 22. Qxf2 {[%clk 0:00:46.9]} 22...
Nxe4 {[%clk 0:01:58.7]} 23. Qe3 {[%clk 0:00:33.9]} 23... f5 {[%clk 0:01:59.6]}
24. Ne7 {[%clk 0:00:17.8]} 24... Qb8 {[%clk 0:01:49.4]} 25. Rxd7 {[%clk
0:00:12.1]} 25... Kxd7 {[%clk 0:01:51.3]} 26. Rd1+ {[%clk 0:00:12.4]} 26... Ke6
{[%clk 0:01:43.5]} 27. Nxf5 {[%clk 0:00:13]} 27... Qg8 {[%clk 0:01:24.9]} 28.
Qxe4 {[%clk 0:00:11.5]} 28... Rd8 {[%clk 0:01:14.1]} 29. Nd4+ {[%clk 0:00:11.8]}
29... Nxd4 {[%clk 0:01:06.1]} 30. cxd4 {[%clk 0:00:12.8]} 30... Qh7 {[%clk
0:01:07.7]} 31. Qxb7 {[%clk 0:00:07.8]} 31... Rxd4 {[%clk 0:01:00.5]} 32. Qc6+
{[%clk 0:00:08.3]} 32... Kf7 {[%clk 0:01:02.1]} 33. Rf1+ {[%clk 0:00:08.9]}
33... Rf4 {[%clk 0:01:02.6]} 34. Qd7+ {[%clk 0:00:08.9]} 34... Kf6 {[%clk
0:00:59.1]} 35. Be7+ {[%clk 0:00:08.8]} 35... Kg6 {[%clk 0:01:00.3]} 36. Qe6+
{[%clk 0:00:08]} 36... Bf6 {[%clk 0:00:58.8]} 37. Nxe5+ {[%clk 0:00:09]} 37...
Kh5 {[%clk 0:00:57.9]} 38. Be2+ {[%clk 0:00:08.6]} 38... Kh6 {[%clk 0:00:53.3]}
39. Qxf6+ {[%clk 0:00:09.2]} 39... Rxf6 {[%clk 0:00:52.7]} 40. Rxf6+ {[%clk
0:00:11.1]} 40... Kg7 {[%clk 0:00:43.8]} 41. Rf7+ {[%clk 0:00:10]} 41... Kg8
{[%clk 0:00:44.7]} 42. Bc4 {[%clk 0:00:07]} 42... Qc2 {[%clk 0:00:37.2]} 43.
Rf2+ {[%clk 0:00:04.8]} 43... Qxc4 {[%clk 0:00:37.8]} 44. Nxc4 {[%clk
0:00:05.6]} 44... Kh7 {[%clk 0:00:39.7]} 45. Rf7+ {[%clk 0:00:06]} 45... Kg6
{[%clk 0:00:40.1]} 46. Ne5+ {[%clk 0:00:07.4]} 46... Kh5 {[%clk 0:00:40.4]} 47.
Rf5+ {[%clk 0:00:08.3]} 47... Kh6 {[%clk 0:00:40.9]} 48. Rf4 {[%clk 0:00:08.5]}
48... Rb8 {[%clk 0:00:40.8]} 49. Rxh4+ {[%clk 0:00:07.9]} 49... Kg7 {[%clk
0:00:42.7]} 50. Rf4 {[%clk 0:00:08.8]} 50... Rb1+ {[%clk 0:00:43.7]} 51. Rf1
{[%clk 0:00:10.2]} 51... Rb5 {[%clk 0:00:45.1]} 52. Bf6+ {[%clk 0:00:12.1]} 1-0

[Event "*** Titled Tuesday Blitz"]
[Site "Chess.com"]
[Date "2020.02.04"]
[Round "7"]
[White "Kimster98"]
[Black "Carnivoras"]
[Result "1-0"]
[WhiteElo "2705"]
[BlackElo "2544"]
[TimeControl "180+2"]
[EndTime "10:36:21 PST"]
[Termination "Kimster98 won by resignation"]

1. e4 {[%clk 0:02:53.2]} 1... e5 {[%clk 0:02:59.1]} 2. Nf3 {[%clk 0:02:54]} 2...
Nc6 {[%clk 0:02:59.2]} 3. Bb5 {[%clk 0:02:55.1]} 3... Nf6 {[%clk 0:02:58.7]} 4.
d3 {[%clk 0:02:53.3]} 4... Bc5 {[%clk 0:02:54.6]} 5. Bxc6 {[%clk 0:02:53.4]}
5... dxc6 {[%clk 0:02:55.2]} 6. Nbd2 {[%clk 0:02:54.4]} 6... O-O {[%clk
0:02:54.3]} 7. Qe2 {[%clk 0:02:47.3]} 7... Re8 {[%clk 0:02:52.5]} 8. Nc4 {[%clk
0:02:35.1]} 8... Nd7 {[%clk 0:02:43.7]} 9. Bg5 {[%clk 0:02:33.7]} 9... f6 {[%clk
0:02:41.9]} 10. Be3 {[%clk 0:02:34.2]} 10... Bf8 {[%clk 0:02:23.9]} 11. h4
{[%clk 0:02:34.1]} 11... a5 {[%clk 0:02:11.8]} 12. h5 {[%clk 0:02:27.9]} 12...
b5 {[%clk 0:02:11.3]} 13. Ncd2 {[%clk 0:02:28.8]} 13... h6 {[%clk 0:02:03.4]}
14. Nh4 {[%clk 0:02:24.2]} 14... Nc5 {[%clk 0:01:58.7]} 15. O-O-O {[%clk
0:02:01.6]} 15... Be6 {[%clk 0:01:56.3]} 16. Kb1 {[%clk 0:01:56.2]} 16... a4
{[%clk 0:01:51.4]} 17. Nf5 {[%clk 0:01:45.6]} 17... b4 {[%clk 0:01:39.5]} 18.
Nc4 {[%clk 0:01:44.9]} 18... b3 {[%clk 0:01:36.8]} 19. cxb3 {[%clk 0:01:37.3]}
19... axb3 {[%clk 0:01:36.5]} 20. a3 {[%clk 0:01:38.9]} 20... Nxd3 {[%clk
0:01:12]} 21. Qxd3 {[%clk 0:01:38.8]} 21... Qxd3+ {[%clk 0:01:11.7]} 22. Rxd3
{[%clk 0:01:40.7]} 22... Bxc4 {[%clk 0:01:12.9]} 23. Rc3 {[%clk 0:01:42.3]}
23... Ba6 {[%clk 0:00:52.1]} 24. Rxb3 {[%clk 0:01:29.3]} 24... Red8 {[%clk
0:00:48.6]} 25. Kc1 {[%clk 0:01:22.4]} 25... Bd3 {[%clk 0:00:46.1]} 26. f3
{[%clk 0:01:23.2]} 26... c5 {[%clk 0:00:46.4]} 27. Rc3 {[%clk 0:01:16.1]} 27...
c4 {[%clk 0:00:47.4]} 28. Rd1 {[%clk 0:00:57.2]} 28... Rab8 {[%clk 0:00:47.4]}
29. Bg1 {[%clk 0:00:52.1]} 29... Be2 {[%clk 0:00:23]} 30. Rxd8 {[%clk
0:00:16.7]} 30... Rxd8 {[%clk 0:00:24.9]} 31. Ne3 {[%clk 0:00:18.5]} 31... Bc5
{[%clk 0:00:22.7]} 32. Bf2 {[%clk 0:00:19.7]} 32... Bd4 {[%clk 0:00:15.9]} 33.
Be1 {[%clk 0:00:15.3]} 33... Bxc3 {[%clk 0:00:15.4]} 34. Bxc3 {[%clk 0:00:16.6]}
34... Rd3 {[%clk 0:00:14.3]} 35. Bd2 {[%clk 0:00:16.4]} 35... Rb3 {[%clk
0:00:14.2]} 36. Bc3 {[%clk 0:00:15.6]} 36... c6 {[%clk 0:00:13.8]} 37. Kd2
{[%clk 0:00:16.1]} 37... Bd3 {[%clk 0:00:14.6]} 38. a4 {[%clk 0:00:17.2]} 38...
Rb8 {[%clk 0:00:15.3]} 39. a5 {[%clk 0:00:18.5]} 39... Kf7 {[%clk 0:00:15.6]}
40. g4 {[%clk 0:00:18.7]} 40... Ke6 {[%clk 0:00:15.4]} 41. Nf5 {[%clk
0:00:19.8]} 41... Rb7 {[%clk 0:00:16.4]} 42. Ke3 {[%clk 0:00:20.6]} 42... Ra7
{[%clk 0:00:16.9]} 43. Bb4 {[%clk 0:00:21.2]} 43... Kf7 {[%clk 0:00:17.7]} 44.
Bc3 {[%clk 0:00:22.6]} 44... c5 {[%clk 0:00:18.4]} 45. Nd6+ {[%clk 0:00:23.2]}
45... Ke6 {[%clk 0:00:19.1]} 46. Nf5 {[%clk 0:00:20.4]} 46... Kf7 {[%clk
0:00:15.7]} 47. Nd6+ {[%clk 0:00:21]} 47... Ke6 {[%clk 0:00:16.7]} 48. Nc8
{[%clk 0:00:21]} 48... Ra8 {[%clk 0:00:14.9]} 49. Nb6 {[%clk 0:00:22.1]} 49...
Ra6 {[%clk 0:00:15.7]} 50. Nd5 {[%clk 0:00:23.3]} 50... Kd7 {[%clk 0:00:13.3]}
51. Nb6+ {[%clk 0:00:24.7]} 51... Kc6 {[%clk 0:00:12.9]} 52. Nd5 {[%clk
0:00:26.1]} 52... Kb5 {[%clk 0:00:13.1]} 53. Nc7+ {[%clk 0:00:26.9]} 53... Kc6
{[%clk 0:00:12]} 54. Nxa6 {[%clk 0:00:28.8]} 1-0

[Event "*** Titled Tuesday Blitz"]
[Site "Chess.com"]
[Date "2020.02.04"]
[Round "7"]
[White "AleksanderHnydiuk"]
[Black "AwareIdea"]
[Result "1-0"]
[WhiteElo "2537"]
[BlackElo "2426"]
[TimeControl "180+2"]
[EndTime "10:36:54 PST"]
[Termination "AleksanderHnydiuk won by resignation"]

1. Nf3 {[%clk 0:03:01.9]} 1... d5 {[%clk 0:02:59.7]} 2. d4 {[%clk 0:03:02.1]}
2... Nf6 {[%clk 0:03:00.1]} 3. c4 {[%clk 0:03:02.7]} 3... e6 {[%clk 0:03:00.9]}
4. g3 {[%clk 0:03:03.3]} 4... dxc4 {[%clk 0:03:01.5]} 5. Bg2 {[%clk 0:03:04.7]}
5... Bd7 {[%clk 0:03:02.9]} 6. O-O {[%clk 0:03:04.7]} 6... Bc6 {[%clk
0:03:03.8]} 7. a4 {[%clk 0:02:58.1]} 7... a6 {[%clk 0:03:01.4]} 8. Bg5 {[%clk
0:02:43.9]} 8... b5 {[%clk 0:03:00.9]} 9. axb5 {[%clk 0:02:43.4]} 9... axb5
{[%clk 0:03:02.8]} 10. Rxa8 {[%clk 0:02:43.5]} 10... Bxa8 {[%clk 0:03:04.7]} 11.
Nc3 {[%clk 0:02:41.7]} 11... b4 {[%clk 0:03:01.1]} 12. Bxf6 {[%clk 0:02:08.4]}
12... gxf6 {[%clk 0:03:00.2]} 13. Na4 {[%clk 0:02:05.7]} 13... Nd7 {[%clk
0:02:52.2]} 14. Qc2 {[%clk 0:01:53.3]} 14... Bd5 {[%clk 0:02:35.7]} 15. e4
{[%clk 0:01:33.4]} 15... b3 {[%clk 0:02:30.2]} 16. Qe2 {[%clk 0:01:25.3]} 16...
Bc6 {[%clk 0:02:22.8]} 17. Nc3 {[%clk 0:01:06.2]} 17... Nb6 {[%clk 0:02:23.1]}
18. d5 {[%clk 0:01:04.2]} 18... Bd7 {[%clk 0:02:24.1]} 19. dxe6 {[%clk
0:01:00.4]} 19... Bxe6 {[%clk 0:02:20.8]} 20. Rd1 {[%clk 0:01:00.8]} 20... Qb8
{[%clk 0:02:10.2]} 21. Nd4 {[%clk 0:01:00.7]} 21... Bd6 {[%clk 0:02:02.9]} 22.
Nd5 {[%clk 0:00:40.2]} 22... Be5 {[%clk 0:01:54.1]} 23. Nc6 {[%clk 0:00:35.5]}
23... Qb7 {[%clk 0:01:43.5]} 24. Nxe5 {[%clk 0:00:22.4]} 24... fxe5 {[%clk
0:01:39.4]} 25. Qh5 {[%clk 0:00:20.1]} 25... Nd7 {[%clk 0:01:08.7]} 26. Qg5
{[%clk 0:00:20.4]} 26... Bxd5 {[%clk 0:01:07.8]} 27. exd5 {[%clk 0:00:18.3]}
27... Qb6 {[%clk 0:01:02.2]} 28. d6 {[%clk 0:00:14.8]} 28... cxd6 {[%clk
0:00:57.4]} 29. Ra1 {[%clk 0:00:13.9]} 29... c3 {[%clk 0:00:36.2]} 30. bxc3
{[%clk 0:00:14.3]} 30... b2 {[%clk 0:00:37.1]} 31. Rb1 {[%clk 0:00:15.6]} 31...
Nc5 {[%clk 0:00:21.2]} 32. Qg4 {[%clk 0:00:10.9]} 32... Ke7 {[%clk 0:00:20.6]}
33. Qh4+ {[%clk 0:00:11.8]} 33... f6 {[%clk 0:00:21.5]} 34. Qg4 {[%clk 0:00:12]}
34... Rf8 {[%clk 0:00:20.3]} 35. Qg7+ {[%clk 0:00:12.4]} 35... Rf7 {[%clk
0:00:21.5]} 36. Qg4 {[%clk 0:00:12.7]} 36... Qb3 {[%clk 0:00:18.4]} 37. Qe2
{[%clk 0:00:11.1]} 37... Na4 {[%clk 0:00:17.7]} 38. Qd2 {[%clk 0:00:08.6]} 38...
Qa2 {[%clk 0:00:17.8]} 39. Be4 {[%clk 0:00:08.1]} 39... Rf8 {[%clk 0:00:16.4]}
40. Qc2 {[%clk 0:00:06.3]} 40... Rb8 {[%clk 0:00:13.4]} 41. Bc6 {[%clk
0:00:06.6]} 41... Nc5 {[%clk 0:00:13.8]} 42. Qxh7+ {[%clk 0:00:07.2]} 42... Kd8
{[%clk 0:00:15]} 43. Be4 {[%clk 0:00:05.2]} 43... Qa1 {[%clk 0:00:13.4]} 44. Bf5
{[%clk 0:00:05]} 44... d5 {[%clk 0:00:11.5]} 45. Qg7 {[%clk 0:00:05]} 45... Rb6
{[%clk 0:00:10.9]} 46. Qf8+ {[%clk 0:00:05.6]} 46... Kc7 {[%clk 0:00:11.8]} 47.
Qxc5+ {[%clk 0:00:06.6]} 47... Kb7 {[%clk 0:00:13.4]} 48. Qxd5+ {[%clk
0:00:07.9]} 48... Ka7 {[%clk 0:00:14.3]} 49. Be4 {[%clk 0:00:09.4]} 49... Rb8
{[%clk 0:00:12.4]} 50. Qc5+ {[%clk 0:00:08.6]} 50... Ka6 {[%clk 0:00:13.5]} 51.
Qd6+ {[%clk 0:00:09.7]} 51... Ka7 {[%clk 0:00:14.6]} 52. Qc7+ {[%clk 0:00:10.2]}
52... Ka6 {[%clk 0:00:16.1]} 53. Qxb8 {[%clk 0:00:10.5]} 1-0